bitfinex-derivatives/quotes_BTCF0:USTF0_20250405
["timestamp","ask_amount","ask_price","bid_price","bid_amount"]
[1743829331457,0.1195629,83662.0,83657.0,0.14312]
[1743829331657,0.1195642,83661.0,83657.0,0.14312]
[1743829332060,0.119565,83660.0,83657.0,0.14312]
[1743829332256,0.1195655,83660.0,83657.0,0.14312]
[1743829332463,0.1195664,83659.0,83657.0,0.14312]
[1743829332856,0.1195605,83664.0,83657.0,0.14312]
[1743829333059,0.119561,83663.0,83657.0,0.14312]
[1743829333470,0.1195624,83662.0,83657.0,0.14312]
[1743829333670,0.0597801,83664.0,83657.0,0.14312]
[1743829334256,0.1195606,83663.0,83657.0,0.14312]
[1743829334667,0.119564,83661.0,83657.0,0.14312]
[1743829335060,0.119564,83661.0,83657.0,0.14376]
[1743829335966,0.1195652,83660.0,83657.0,0.14376]
[1743829337179,0.4205728,83674.0,83657.0,0.14376]
[1743829337474,0.00088001,83671.0,83664.0,0.07198766]
[1743829337674,0.3608,83674.0,83665.0,0.0638]
[1743829337975,0.1195494,83671.0,83667.0,0.3608]
[1743829338161,0.1195508,83670.0,83668.0,0.0944]
[1743829338664,0.00084,83671.0,83669.0,0.1195519]
[1743829338861,0.1203891,83671.0,83670.0,0.11386]
[1743829339057,0.1195491,83671.0,83670.0,0.11386]
[1743829343781,0.1203891,83671.0,83670.0,0.47526]
[1743829345577,0.00084,83671.0,83670.0,0.47526]
[1743829345875,0.00017923,83677.0,83670.0,0.47526]
[1743829345876,0.1195435,83675.0,83670.0,0.47526]
[1743829346071,0.1195449,83674.0,83670.0,0.47526]
[1743829346272,0.1203849,83674.0,83670.0,0.47526]
[1743829346471,0.2,83673.0,83670.0,0.47526]
[1743829346672,0.20084,83673.0,83670.0,0.47526]
[1743829347370,0.320387,83673.0,83670.0,0.47526]
[1743829347566,0.1195483,83672.0,83670.0,0.47526]
[1743829347770,0.1195491,83671.0,83670.0,0.47526]
[1743829347972,0.1203891,83671.0,83670.0,0.47526]
[1743829350072,0.1203891,83671.0,83670.0,0.4247]
[1743829350372,0.1203891,83671.0,83670.0,0.47526]
[1743829350576,0.1839891,83671.0,83670.0,0.47526]
[1743829351181,0.1839891,83671.0,83670.0,0.3924]
[1743829351381,0.1839891,83671.0,83670.0,0.44296]
[1743829353482,0.1839891,83671.0,83670.0,0.0006]
[1743829353683,0.1195549,83667.0,83666.0,0.0506]
[1743829354379,0.1203949,83667.0,83666.0,0.0506]
[1743829354577,0.119562,83662.0,83661.0,0.3938]
[1743829354786,0.119562,83662.0,83661.0,0.4444]
[1743829354991,0.0597817,83661.0,83654.0,0.6098]
[1743829355181,0.1793586,83655.0,83654.0,0.0006]
[1743829355378,0.1195749,83653.0,83645.0,0.05068]
[1743829355573,0.12045491,83653.0,83645.0,0.05068]
[1743829355985,0.21885491,83653.0,83645.0,0.05068]
[1743829357794,0.21885491,83653.0,83646.0,0.0316]
[1743829357985,0.41885491,83653.0,83646.0,0.0316]
[1743829360188,0.41885491,83653.0,83646.0,0.0646]
[1743829360392,0.41885491,83653.0,83646.0,0.0316]
[1743829362594,0.0597909,83649.0,83648.0,0.05076]
[1743829362784,0.06067091,83649.0,83648.0,0.05136]
[1743829363484,0.12377091,83649.0,83648.0,0.05136]
[1743829363685,0.12477091,83649.0,83648.0,0.05636]
[1743829364597,0.12477091,83649.0,83648.0,0.06236]
[1743829365499,0.12477091,83649.0,83648.0,0.06176]
[1743829368197,0.09297091,83649.0,83648.0,0.06176]
[1743829369990,0.09297091,83649.0,83648.0,0.06236]
[1743829371690,0.06167091,83649.0,83648.0,0.06236]
[1743829381005,0.00188001,83649.0,83648.0,0.06236]
[1743829381193,0.12146061,83649.0,83648.0,0.06236]
[1743829385804,0.15226061,83649.0,83648.0,0.06236]
[1743829388405,0.15226061,83649.0,83648.0,0.11990608]
[1743829388810,0.12146061,83649.0,83648.0,0.11990608]
[1743829390195,0.00188001,83649.0,83648.0,0.11990608]
[1743829390500,0.12146061,83649.0,83648.0,0.11990608]
[1743829392508,0.12146061,83649.0,83648.0,0.15030608]
[1743829393105,0.00188001,83649.0,83648.0,0.15030608]
[1743829393708,0.12146061,83649.0,83648.0,0.15030608]
[1743829397510,0.00188001,83649.0,83648.0,0.15030608]
[1743829397708,0.17802789,83651.0,83648.0,0.21009678]
[1743829398012,0.17802789,83651.0,83649.0,0.05754608]
[1743829398215,0.17802789,83651.0,83650.0,0.05754608]
[1743829398512,0.17802789,83651.0,83650.0,0.20802518]
[1743829398710,0.17802789,83651.0,83650.0,0.12074608]
[1743829399114,0.17902789,83651.0,83650.0,0.12074608]
[1743829399813,0.29760559,83651.0,83650.0,0.12074608]
[1743829400015,0.29828559,83651.0,83650.0,0.12142608]
[1743829400516,0.26332575,83651.0,83650.0,0.12142608]
[1743829400810,0.32512575,83651.0,83650.0,0.12142608]
[1743829402719,0.32512575,83651.0,83650.0,0.08912608]
[1743829403426,0.32512575,83651.0,83650.0,0.44992608]
[1743829403617,0.32512575,83651.0,83650.0,0.08912608]
[1743829403817,0.32512575,83651.0,83650.0,0.44992608]
[1743829404926,0.1820577,83651.0,83650.0,0.44992608]
[1743829406025,0.1518577,83651.0,83650.0,0.44992608]
[1743829409133,0.03228,83651.0,83650.0,0.44992608]
[1743829409336,0.00068,83651.0,83650.0,0.44992608]
[1743829409540,0.14908093,83660.0,83652.0,0.0597876]
[1743829409718,0.14908093,83660.0,83654.0,0.1195726]
[1743829409719,0.13757495,83660.0,83654.0,0.1195726]
[1743829409923,0.13757495,83660.0,83655.0,0.0618]
[1743829410125,0.13757495,83660.0,83656.0,0.05754608]
[1743829410333,0.13757495,83660.0,83657.0,0.05754608]
[1743829410533,0.13757495,83660.0,83658.0,0.05754608]
[1743829410739,0.13757495,83660.0,83659.0,0.41834608]
[1743829410926,0.13757495,83660.0,83659.0,0.47942608]
[1743829411423,0.25714025,83660.0,83659.0,0.47942608]
[1743829412931,0.12016531,83660.0,83659.0,0.47942608]
[1743829414029,0.15306531,83660.0,83659.0,0.47942608]
[1743829416529,0.15306531,83660.0,83659.0,0.42188]
[1743829417735,0.15306531,83660.0,83659.0,0.39178]
[1743829422536,0.15306531,83660.0,83659.0,0.44930923]
[1743829422742,0.15306531,83660.0,83659.0,0.39178]
[1743829423135,0.15306531,83660.0,83659.0,0.44930921]
[1743829423831,0.15306531,83660.0,83659.0,0.41900921]
[1743829424138,0.1195806,83649.0,83648.0,0.05088]
[1743829424340,0.1203406,83649.0,83648.0,0.05172]
[1743829424545,0.2153406,83649.0,83648.0,0.00084]
[1743829425941,0.4153406,83649.0,83648.0,0.00084]
[1743829426149,0.4163406,83649.0,83648.0,0.00584]
[1743829426847,0.4163406,83649.0,83648.0,0.01184]
[1743829428049,0.4163406,83649.0,83648.0,0.011]
[1743829430233,0.4163406,83649.0,83648.0,0.0116]
[1743829430438,0.4163406,83649.0,83648.0,0.011]
[1743829431644,0.20176,83649.0,83648.0,0.3718]
[1743829431840,0.20176,83649.0,83648.0,0.42993627]
[1743829432545,0.20176,83649.0,83648.0,0.46183627]
[1743829433047,0.2735083,83649.0,83648.0,0.46183627]
[1743829434552,0.2735083,83649.0,83648.0,0.40434]
[1743829434750,0.2735083,83649.0,83648.0,0.45522]
[1743829436250,0.2735083,83649.0,83648.0,0.09442]
[1743829436848,0.0328,83661.0,83648.0,0.09442]
[1743829437049,0.0717415,83657.0,83656.0,0.3608]
[1743829437453,0.07234151,83657.0,83656.0,0.3614]
[1743829438455,0.00060001,83657.0,83656.0,0.3614]
[1743829438654,0.0358682,83663.0,83656.0,0.3614]
[1743829438953,0.03646821,83663.0,83656.0,0.3614]
[1743829439154,0.0717389,83660.0,83657.0,0.0988]
[1743829439355,0.07233891,83660.0,83657.0,0.0994]
[1743829439954,0.00060001,83660.0,83657.0,0.0994]
[1743829440260,0.0717406,83658.0,83657.0,0.0994]
[1743829440957,0.07234061,83658.0,83657.0,0.0994]
[1743829446258,0.00060001,83658.0,83657.0,0.0994]
[1743829446461,0.0717401,83659.0,83657.0,0.0994]
[1743829446759,0.0358677,83664.0,83657.0,0.0994]
[1743829446958,0.0717382,83661.0,83657.0,0.0994]
[1743829447160,0.07233821,83661.0,83657.0,0.0994]
[1743829448054,0.00017923,83667.0,83659.0,0.0717395]
[1743829448253,0.00017923,83667.0,83660.0,0.0627]
[1743829448254,0.00077924,83667.0,83660.0,0.0627]
[1743829448563,0.2,83663.0,83661.0,0.0508]
[1743829448856,0.20060001,83663.0,83662.0,0.0627]
[1743829449063,0.27233641,83663.0,83662.0,0.06334]
[1743829460967,0.30373641,83663.0,83662.0,0.06334]
[1743829466972,0.33653641,83663.0,83662.0,0.06334]
[1743829467572,0.33653641,83663.0,83662.0,0.12088576]
[1743829469273,0.24072672,83663.0,83662.0,0.12088576]
[1743829470270,0.07233641,83663.0,83662.0,0.12088576]
[1743829474170,0.07233641,83663.0,83662.0,0.48168576]
[1743829475975,0.10523641,83663.0,83662.0,0.48168576]
[1743829476976,0.11917932,83666.0,83662.0,0.48168576]
[1743829477180,0.11997932,83666.0,83663.0,0.05754576]
[1743829477381,0.19171312,83666.0,83664.0,0.05754576]
[1743829477574,0.11997932,83666.0,83664.0,0.15344576]
[1743829477879,0.11997932,83666.0,83665.0,0.05754576]
[1743829478081,0.11997932,83666.0,83665.0,0.05834576]
[1743829478281,0.11997932,83666.0,83665.0,0.12234576]
[1743829478671,0.31997932,83666.0,83665.0,0.12234576]
[1743829478983,0.2008,83666.0,83665.0,0.12234576]
[1743829481477,0.2725337,83666.0,83665.0,0.12234576]
[1743829481875,0.3030337,83666.0,83665.0,0.12234576]
[1743829483281,0.3030337,83666.0,83665.0,0.48314576]
[1743829488382,0.3030337,83666.0,83665.0,0.45124576]
[1743829488577,0.3030337,83666.0,83665.0,0.50172576]
[1743829488782,0.6638337,83666.0,83665.0,0.10882576]
[1743829489089,0.6638337,83666.0,83665.0,0.05048]
[1743829492687,0.3030337,83666.0,83665.0,0.05048]
[1743829496289,0.3030337,83666.0,83665.0,0.05128]
[1743829496787,0.3030337,83666.0,83665.0,0.08258]
[1743829497682,0.16288999,83666.0,83665.0,0.14015973]
[1743829497887,0.21359853,83675.0,83670.0,0.0717302]
[1743829498192,0.0717269,83674.0,83673.0,0.3608]
[1743829498487,0.0730869,83674.0,83673.0,0.41973973]
[1743829498888,0.00136,83674.0,83673.0,0.41973973]
[1743829499191,0.00136,83674.0,83673.0,0.49146743]
[1743829499495,0.15565853,83675.0,83674.0,0.0717269]
[1743829499680,0.15565853,83675.0,83674.0,0.13106663]
[1743829499992,0.0358581,83687.0,83674.0,0.13106663]
[1743829499993,0.0331,83689.0,83682.0,0.03586]
[1743829500195,0.0646,83689.0,83685.0,0.3608]
[1743829500394,0.0358577,83688.0,83686.0,0.05757973]
[1743829500593,0.1075726,83688.0,83687.0,0.05757973]
[1743829500792,0.1075726,83688.0,83687.0,0.05933973]
[1743829501290,0.1075726,83688.0,83687.0,0.03136138]
[1743829501500,0.3075726,83688.0,83687.0,0.03136138]
[1743829508093,0.2358577,83688.0,83687.0,0.03136138]
[1743829512894,0.2997577,83688.0,83687.0,0.03136138]
[1743829515001,0.2675577,83688.0,83687.0,0.03136138]
[1743829515207,0.2358577,83688.0,83687.0,0.06266138]
[1743829516106,0.2,83688.0,83687.0,0.13437708]
[1743829516708,0.0717144,83689.0,83687.0,0.13437708]
[1743829517011,0.0717144,83689.0,83688.0,0.0315]
[1743829517308,0.0717144,83689.0,83688.0,0.03326]
[1743829517510,0.0717144,83689.0,83688.0,0.06346]
[1743829518202,0.2717144,83689.0,83688.0,0.06346]
[1743829518506,0.2,83689.0,83688.0,0.06346]
[1743829518809,0.02374999,83700.0,83688.0,0.06346]
[1743829518997,0.071714,83689.0,83688.0,0.06346]
[1743829519698,0.2,83689.0,83688.0,0.06346]
[1743829520011,0.2,83689.0,83688.0,0.1351749]
[1743829521201,0.1414,83689.0,83688.0,0.1351749]
[1743829521511,0.0717109,83693.0,83689.0,0.0717135]
[1743829521809,0.0717109,83693.0,83689.0,0.0734735]
[1743829521998,0.0717109,83693.0,83690.0,0.1655132]
[1743829522198,0.0717109,83693.0,83690.0,0.1672732]
[1743829522399,0.0312,83702.0,83695.0,0.0717087]
[1743829522609,0.07188643,83697.0,83696.0,0.11362]
[1743829522809,0.07188643,83697.0,83696.0,0.11542]
[1743829523201,0.27188643,83697.0,83696.0,0.11542]
[1743829523503,0.33538643,83697.0,83696.0,0.11542]
[1743829524810,0.20017923,83697.0,83696.0,0.11542]
[1743829525110,0.20017923,83697.0,83696.0,0.187128]
[1743829525413,0.19418023,83697.0,83696.0,0.187128]
[1743829525598,0.0323,83700.0,83698.0,0.0717061]
[1743829525802,0.0323,83700.0,83699.0,0.1367055]
[1743829526006,0.0323,83700.0,83699.0,0.1384655]
[1743829527018,0.0717021,83703.0,83700.0,0.0717041]
[1743829527219,0.0717021,83703.0,83700.0,0.0735041]
[1743829527517,0.0717021,83703.0,83701.0,0.4983037]
[1743829527721,0.0717029,83702.0,83701.0,0.4266]
[1743829527919,0.1040029,83702.0,83701.0,0.4284]
[1743829528218,0.3040029,83702.0,83701.0,0.4284]
[1743829528422,0.29468347,83702.0,83701.0,0.5001038]
[1743829528717,0.0358446,83718.0,83701.0,0.5858112]
[1743829528924,0.071696,83710.0,83709.0,0.3608]
[1743829529220,0.071696,83710.0,83709.0,0.41336]
[1743829529816,0.104296,83710.0,83709.0,0.41336]
[1743829531814,0.137396,83710.0,83709.0,0.41336]
[1743829532011,0.137396,83710.0,83709.0,0.4134]
[1743829532425,0.337396,83710.0,83709.0,0.4134]
[1743829532922,0.337396,83710.0,83709.0,0.41302]
[1743829533518,0.337396,83710.0,83709.0,0.34618]
[1743829534128,0.337396,83710.0,83709.0,0.00176]
[1743829535026,0.0716969,83709.0,83708.0,0.05052]
[1743829535225,0.0716969,83709.0,83708.0,0.05116]
[1743829535421,0.1039969,83709.0,83708.0,0.05116]
[1743829535619,0.1039969,83709.0,83708.0,0.04817]
[1743829536322,0.3039969,83709.0,83708.0,0.04817]
[1743829537022,0.3039969,83709.0,83708.0,0.04689]
[1743829546125,0.3039969,83709.0,83708.0,0.04813]
[1743829547027,0.3039969,83709.0,83708.0,0.04689]
[1743829548227,0.3039969,83709.0,83708.0,0.07973]
[1743829548527,0.2,83709.0,83708.0,0.1845278]
[1743829548730,0.2716969,83709.0,83708.0,0.11283]
[1743829548932,0.2716969,83709.0,83708.0,0.14453]
[1743829558431,0.2716969,83709.0,83708.0,0.2021048]
[1743829568936,0.2716969,83709.0,83708.0,0.1373048]
[1743829569140,0.2716969,83709.0,83708.0,0.1360648]
[1743829569638,0.3339969,83709.0,83708.0,0.1360648]
[1743829576243,0.3339969,83709.0,83708.0,0.1373048]
[1743829577643,0.3339969,83709.0,83708.0,0.1360648]
[1743829578743,0.3339969,83709.0,83708.0,0.1373048]
[1743829584851,0.3030969,83709.0,83708.0,0.1373048]
[1743829585044,0.3030969,83709.0,83708.0,0.1373448]
[1743829585245,0.3030969,83709.0,83708.0,0.1700448]
[1743829589545,0.2716969,83709.0,83708.0,0.1700448]
[1743829592045,0.2716969,83709.0,83708.0,0.11247]
[1743829592243,0.3035969,83709.0,83708.0,0.11247]
[1743829592555,0.3035969,83709.0,83708.0,0.1700839]
[1743829592950,0.3035969,83709.0,83708.0,0.11247]
[1743829593560,0.3035969,83709.0,83708.0,0.17008237]
[1743829594558,0.3035969,83709.0,83708.0,0.11247]
[1743829595257,0.3035969,83709.0,83708.0,0.17008325]
[1743829595555,0.3035969,83709.0,83708.0,0.11247]
[1743829597353,0.3035969,83709.0,83708.0,0.17008278]
[1743829612954,0.3035969,83709.0,83708.0,0.11247]
[1743829614670,0.2716969,83709.0,83708.0,0.11247]
[1743829614873,0.2,83709.0,83708.0,0.1841678]
[1743829615169,0.2145154,83716.0,83715.0,0.0716918]
[1743829615358,0.2145154,83716.0,83715.0,0.49139399]
[1743829615763,0.2862012,83722.0,83720.0,0.0716873]
[1743829615958,0.2862012,83722.0,83721.0,0.08084]
[1743829616166,0.2145154,83722.0,83721.0,0.14488]
[1743829616363,0.2862012,83722.0,83721.0,0.20248383]
[1743829616569,0.2862012,83722.0,83721.0,0.14488]
[1743829618274,0.4862012,83722.0,83721.0,0.14488]
[1743829618759,0.4145154,83722.0,83721.0,0.2165666]
[1743829618955,0.0358394,83731.0,83721.0,0.2024403]
[1743829619181,0.18140249,83732.0,83728.0,0.0358403]
[1743829619474,0.18140249,83732.0,83731.0,0.0716781]
[1743829619669,0.18140249,83732.0,83731.0,0.0729181]
[1743829620459,0.32112943,83739.0,83731.0,0.0729181]
[1743829620460,0.28779135,83752.0,83739.0,0.0358352]
[1743829620763,0.0716661,83745.0,83744.0,0.3608]
[1743829620963,0.0716661,83745.0,83744.0,0.00124]
[1743829621173,0.0716661,83745.0,83744.0,0.06059777]
[1743829621366,0.0716661,83745.0,83744.0,0.05052]
[1743829621873,0.1332661,83745.0,83744.0,0.06813852]
[1743829623072,0.1332661,83745.0,83744.0,0.07719858]
[1743829624678,0.6108641,83750.0,83749.0,0.0716627]
[1743829624872,0.2500641,83750.0,83749.0,0.0729027]
[1743829625372,0.4500641,83750.0,83749.0,0.0729027]
[1743829626075,0.4500641,83750.0,83749.0,0.1051027]
[1743829626774,0.2500641,83750.0,83749.0,0.1051027]
[1743829628269,0.071661,83751.0,83750.0,0.0716618]
[1743829628469,0.0323,83754.0,83753.0,0.0716592]
[1743829628676,0.0323,83754.0,83753.0,0.0728992]
[1743829628877,0.0323,83754.0,83753.0,0.1364992]
[1743829629078,0.0323,83754.0,83753.0,0.06484]
[1743829629580,0.1039584,83754.0,83753.0,0.06484]
[1743829630080,0.3039584,83754.0,83753.0,0.06484]
[1743829631270,0.2716584,83754.0,83753.0,0.06484]
[1743829637275,0.3346584,83754.0,83753.0,0.06484]
[1743829638081,0.3346584,83754.0,83753.0,0.00124]
[1743829643187,0.6954584,83754.0,83753.0,0.00124]
[1743829643387,0.0716609,83751.0,83750.0,0.05056]
[1743829643887,0.0716661,83745.0,83744.0,0.02667858]
[1743829644185,0.0716738,83736.0,83735.0,0.09234696]
[1743829644392,0.4324738,83736.0,83735.0,0.09362696]
[1743829644884,0.4324738,83736.0,83715.0,0.4803197]
[1743829644885,0.0716789,83730.0,83715.0,0.4803197]
[1743829645188,0.0725989,83730.0,83729.0,0.28672226]
[1743829645884,0.1379989,83730.0,83729.0,0.28672226]
[1743829646078,0.3379989,83730.0,83729.0,0.28672226]
[1743829646382,0.3379989,83730.0,83722.0,0.00179139]
[1743829646383,0.0716849,83723.0,83722.0,0.00179139]
[1743829646582,0.43308491,83723.0,83722.0,0.00267139]
[1743829646784,0.43308491,83723.0,83722.0,0.01069769]
[1743829646984,0.1075422,83713.0,83710.0,0.06588628]
[1743829647293,0.0716952,83711.0,83710.0,0.0699678]
[1743829647479,0.0726152,83711.0,83710.0,0.0699678]
[1743829647984,0.1351152,83711.0,83710.0,0.03412]
[1743829649089,0.1341952,83711.0,83710.0,0.03412]
[1743829650288,0.1341952,83711.0,83710.0,0.0432154]
[1743829650490,0.1350352,83711.0,83710.0,0.0432154]
[1743829652282,0.1350352,83711.0,83710.0,0.06086479]
[1743829653192,0.1350352,83711.0,83710.0,0.09116479]
[1743829653376,0.1341952,83711.0,83710.0,0.09116479]
[1743829656792,0.1341952,83711.0,83710.0,0.45196479]
[1743829657888,0.1341952,83711.0,83710.0,0.09116479]
[1743829658091,0.1341952,83711.0,83710.0,0.45196479]
[1743829661190,0.1341952,83711.0,83710.0,0.09116479]
[1743829661397,0.1350352,83711.0,83710.0,0.45196479]
[1743829661704,0.1341952,83711.0,83710.0,0.45196479]
[1743829666403,0.1341952,83711.0,83710.0,0.09116479]
[1743829666700,0.1350352,83711.0,83710.0,0.45196479]
[1743829666899,0.1341952,83711.0,83710.0,0.45196479]
[1743829672701,0.1348352,83711.0,83710.0,0.45196479]
[1743829674808,0.1348352,83711.0,83710.0,0.73776705]
[1743829675006,0.1341952,83711.0,83710.0,0.73776705]
[1743829675204,0.1341952,83711.0,83710.0,0.70746705]
[1743829675905,0.1341952,83711.0,83710.0,0.34666705]
[1743829676103,0.1341952,83711.0,83710.0,0.70746705]
[1743829676609,0.1341952,83711.0,83710.0,0.76494669]
[1743829677216,0.0625,83711.0,83710.0,0.76494669]
[1743829677514,0.0307,83711.0,83710.0,0.76494669]
[1743829678117,0.0307,83711.0,83710.0,0.47914443]
[1743829678413,0.1023952,83711.0,83710.0,0.47914443]
[1743829684918,0.1032352,83711.0,83710.0,0.47914443]
[1743829686113,0.1032352,83711.0,83710.0,0.11834443]
[1743829686306,0.1032352,83711.0,83710.0,0.47914443]
[1743829686818,0.1032352,83711.0,83710.0,0.11834443]
[1743829687020,0.1032352,83711.0,83710.0,0.47914443]
[1743829689523,0.1032352,83711.0,83710.0,0.11834443]
[1743829689712,0.1032352,83711.0,83710.0,0.47914443]
[1743829690312,0.1032352,83711.0,83710.0,0.11834443]
[1743829690620,0.1032352,83711.0,83710.0,0.47914443]
[1743829691418,0.1032352,83711.0,83710.0,0.11834443]
[1743829691728,0.03154,83711.0,83710.0,0.47914443]
[1743829691920,0.3608,83723.0,83716.0,0.0716903]
[1743829692221,0.0716892,83718.0,83717.0,0.05747964]
[1743829692423,0.0716892,83718.0,83717.0,0.05831964]
[1743829695023,0.0725292,83718.0,83717.0,0.05831964]
[1743829695423,0.0716892,83718.0,83717.0,0.05831964]
[1743829697829,0.0725292,83718.0,83717.0,0.05831964]
[1743829698028,0.0716892,83718.0,83717.0,0.05831964]
[1743829698529,0.07228921,83718.0,83717.0,0.05831964]
[1743829700329,0.0716892,83718.0,83717.0,0.05831964]
[1743829702737,0.033,83719.0,83717.0,0.05831964]
[1743829702926,0.0716892,83718.0,83717.0,0.00084]
[1743829703128,0.1029892,83718.0,83717.0,0.09056936]
[1743829705435,0.10386921,83718.0,83717.0,0.09056936]
[1743829715235,0.00088001,83718.0,83717.0,0.09056936]
[1743829715541,0.0716892,83718.0,83717.0,0.09056936]
[1743829715842,0.0716892,83718.0,83717.0,0.12196936]
[1743829720143,0.0716892,83718.0,83717.0,0.05090676]
[1743829720346,0.0716918,83715.0,83714.0,0.28678785]
[1743829720646,0.0723318,83715.0,83714.0,0.28746785]
[1743829721245,0.1026318,83715.0,83714.0,0.28746785]
[1743829721442,0.3026318,83715.0,83714.0,0.28746785]
[1743829724249,0.3026318,83715.0,83714.0,0.00068]
[1743829724447,0.0716952,83711.0,83710.0,0.02674479]
[1743829724745,0.0716969,83709.0,83708.0,0.0307]
[1743829724932,0.07229691,83709.0,83708.0,0.0307]
[1743829725445,0.13619691,83709.0,83708.0,0.0307]
[1743829726248,0.13619691,83709.0,83708.0,0.06193123]
[1743829739960,0.00060001,83709.0,83708.0,0.42273123]
[1743829740256,0.0317,83710.0,83708.0,0.42333123]
[1743829740561,0.0716969,83709.0,83708.0,0.42333123]
[1743829740858,0.0723369,83709.0,83708.0,0.42333123]
[1743829741158,0.0723369,83709.0,83708.0,0.48034414]
[1743829741362,0.0723369,83709.0,83708.0,0.42333123]
[1743829746259,0.0723369,83709.0,83708.0,0.48035996]
[1743829749156,0.0723369,83709.0,83708.0,0.11955996]
[1743829749855,0.0723369,83709.0,83708.0,0.06253123]
[1743829750855,0.0723369,83709.0,83708.0,0.06193123]
[1743829751058,0.0723369,83709.0,83708.0,0.06253123]
[1743829752962,0.0716943,83713.0,83708.0,0.06253123]
[1743829753163,0.00084,83713.0,83709.0,0.05706125]
[1743829753362,0.00084,83713.0,83710.0,0.1536958]
[1743829753560,0.00084,83713.0,83710.0,0.21151705]
[1743829753764,0.00084,83713.0,83711.0,0.05706125]
[1743829753963,0.00084,83713.0,83712.0,0.0315]
[1743829754164,0.00084,83713.0,83712.0,0.03226]
[1743829755255,0.00084,83713.0,83712.0,0.08933774]
[1743829755767,0.20084,83713.0,83712.0,0.08933774]
[1743829756156,0.20084,83713.0,83712.0,0.16103204]
[1743829756361,0.20084,83713.0,83712.0,0.19283204]
[1743829756560,0.20084,83713.0,83712.0,0.12113774]
[1743829756866,0.20084,83713.0,83712.0,0.19283204]
[1743829757067,0.00084,83713.0,83712.0,0.19283204]
[1743829757464,0.0716904,83717.0,83712.0,0.19283204]
[1743829757667,0.0716904,83717.0,83716.0,0.3608]
[1743829757860,0.0321,83718.0,83716.0,0.41787774]
[1743829758061,0.1037892,83718.0,83717.0,0.05707774]
[1743829758261,0.1037892,83718.0,83717.0,0.15457774]
[1743829760268,0.1045492,83718.0,83717.0,0.15533774]
[1743829760861,0.1037892,83718.0,83717.0,0.15533774]
[1743829761666,0.1037892,83718.0,83717.0,0.09826]
[1743829764068,0.1037892,83718.0,83717.0,0.45906]
[1743829771667,0.1037892,83718.0,83717.0,0.5160844]
[1743829772175,0.1037892,83718.0,83717.0,0.45906]
[1743829774881,0.1045492,83718.0,83717.0,0.45906]
[1743829775279,0.1045492,83718.0,83717.0,0.09826]
[1743829777282,0.1045492,83718.0,83717.0,0.15529708]
[1743829777876,0.1037892,83718.0,83717.0,0.15529708]
[1743829779388,0.1037892,83718.0,83717.0,0.09826]
[1743829780175,0.1045492,83718.0,83717.0,0.09826]
[1743829780375,0.1037892,83718.0,83717.0,0.09826]
[1743829780979,0.1046292,83718.0,83717.0,0.09826]
[1743829781799,0.1046292,83718.0,83717.0,0.15530905]
[1743829795188,0.03294,83718.0,83717.0,0.15530905]
[1743829795496,0.1037892,83718.0,83717.0,0.15530905]
[1743829796999,0.1037892,83718.0,83717.0,0.4420969]
[1743829800091,0.1045892,83718.0,83717.0,0.4420969]
[1743829802296,0.14701818,83829.0,83724.0,0.0716836]
[1743829802297,0.0716818,83727.0,83724.0,0.0716836]
[1743829802601,0.07228151,83727.0,83726.0,0.3608]
[1743829802802,0.0726815,83727.0,83726.0,0.41884905]
[1743829802994,0.0726815,83727.0,83726.0,0.51304905]
[1743829803497,0.2726815,83727.0,83726.0,0.51304905]
[1743829806302,0.3057815,83727.0,83726.0,0.456]
[1743829807698,0.0358364,83738.0,83734.0,0.0716747]
[1743829808004,0.1044729,83737.0,83736.0,0.3608]
[1743829808307,0.0659,83737.0,83736.0,0.36212]
[1743829808494,0.0659,83737.0,83736.0,0.4337938]
[1743829808710,0.0659,83737.0,83736.0,0.4651938]
[1743829809004,0.1677729,83737.0,83736.0,0.4975938]
[1743829810704,0.1677729,83737.0,83736.0,0.42592]
[1743829816116,0.1346729,83737.0,83736.0,0.42592]
[1743829816317,0.1018729,83737.0,83736.0,0.42592]
[1743829818115,0.0318,83743.0,83736.0,0.42592]
[1743829818329,0.0358291,83755.0,83743.0,0.0716673]
[1743829818615,0.0716618,83750.0,83749.0,0.3608]
[1743829818917,0.0716618,83750.0,83749.0,0.36212]
[1743829819117,0.1034618,83750.0,83749.0,0.36212]
[1743829820131,0.3034618,83750.0,83749.0,0.36212]
[1743829821422,0.3365618,83750.0,83749.0,0.36212]
[1743829822217,0.3365618,83750.0,83749.0,0.38042735]
[1743829826521,0.3365618,83750.0,83749.0,0.41332735]
[1743829832141,0.3365618,83750.0,83749.0,0.44532735]
[1743829833438,0.3365618,83750.0,83749.0,0.51699005]
[1743829834343,0.2649,83750.0,83749.0,0.51699005]
[1743829834530,0.2331,83750.0,83749.0,0.51699005]
[1743829835442,0.2,83750.0,83749.0,0.51699005]
[1743829835743,0.2716618,83750.0,83749.0,0.51699005]
[1743829836446,0.2716618,83750.0,83749.0,0.44532735]
[1743829842645,0.2716618,83750.0,83749.0,0.08452735]
[1743829842945,0.2716618,83750.0,83749.0,0.44532735]
[1743829846543,0.2,83750.0,83749.0,0.51699005]
[1743829846743,0.2,83750.0,83749.0,0.57404244]
[1743829847047,0.0304,83758.0,83757.0,0.0716558]
[1743829847238,0.0992254,83763.0,83757.0,0.0729758]
[1743829847542,0.0716541,83759.0,83758.0,0.0942]
[1743829847749,0.0716541,83759.0,83758.0,0.11408]
[1743829848443,0.1028541,83759.0,83758.0,0.11408]
[1743829848746,0.1028541,83759.0,83758.0,0.12289057]
[1743829849147,0.3028541,83759.0,83758.0,0.12289057]
[1743829852655,0.3028541,83759.0,83758.0,0.09109057]
[1743829853548,0.3028541,83759.0,83758.0,0.08977057]
[1743829854354,0.3028541,83759.0,83758.0,0.03941057]
[1743829854552,0.3028541,83759.0,83758.0,0.08977057]
[1743829855054,0.3028541,83759.0,83758.0,0.09109057]
[1743829855248,0.3028541,83759.0,83758.0,0.06049057]
[1743829858346,0.3028541,83759.0,83758.0,0.05917057]
[1743829858747,0.3028541,83759.0,83758.0,0.06049057]
[1743829864460,0.3028541,83759.0,83758.0,0.01013057]
[1743829864856,0.0716592,83753.0,83752.0,0.19249016]
[1743829865164,0.0725792,83753.0,83752.0,0.02569016]
[1743829865860,0.1356792,83753.0,83752.0,0.02569016]
[1743829866464,0.3356792,83753.0,83752.0,0.02569016]
[1743829866660,0.3356792,83753.0,83752.0,0.00092]
[1743829866855,0.0716609,83751.0,83750.0,0.0331]
[1743829867054,0.07226091,83751.0,83750.0,0.0331]
[1743829868273,0.27226091,83751.0,83750.0,0.04223252]
[1743829870266,0.27226091,83751.0,83750.0,0.04315252]
[1743829870563,0.27226091,83751.0,83750.0,0.04223252]